[Event "44th Chess Olympiad Women 2022"]
[Site "Chennai"]
[Date "2022.08.02"]
[Round "5.53"]
[White "Castillo Beitia, Ashley Alexandra"]
[Black "Hwass Zeineb"]
[Result "1-0"]
[ECO "D06"]
[WhiteElo "1587"]
[BlackElo "1386"]
[Annotator "NA RC COMBH"]
[PlyCount "75"]
[EventDate "2022.07.29"]
[EventType "team-tourn"]
[EventCountry "IND"]
[SourceTitle "playchess.com"]
[Source "ChessBase"]
[SourceQuality "1"]
[WhiteTeam "Panama"]
[BlackTeam "Tunisia"]
[WhiteTeamCountry "PAN"]
[BlackTeamCountry "TUN"]
[TimeControl "40/5400+30:1800+30"]

1. d4 {[%emt 0:00:17]} d5 {[%emt 0:00:06]} 2. c4 {[%emt 0:00:07]} e6 {[%emt 0:00:06]} 3. Nc3 {[%emt 0:01:35]} Nf6 {[%emt 0:01:32]} 4. cxd5 {[%emt 0:00:13]} Nxd5 {[%emt 0:00:29]} 5. e4 {[%emt 0:00:55]} Nb6 {[%emt 0:01:03]} 6. Nf3 {[%emt 0:03:28]} N8d7 {[%emt 0:03:19]} 7. Bd3 {[%emt 0:05:12]} Be7 {[%emt 0:01:56]} 8. O-O {[%emt 0:01:42]} O-O {[%emt 0:00:04]} 9. Bf4 {[%emt 0:00:45]} a6 {[%emt 0:01:33]} 10. Qc2 {[%emt 0:01:41]} Re8 {[%emt 0:08:12]} 11. Nb5 {[%emt 0:06:03]} Bf8 {[%emt 0:08:20]} 12. Nxc7 {[%emt 0:02:21]} h6 {[%emt 0:04:28]} 13. Rac1 {[%emt 0:05:03]} Ra7 {[%emt 0:02:57]} 14. Nxe8 {[%emt 0:00:34]} Qxe8 {[%emt 0:00:03]} 15. Ne5 {[%emt 0:05:36]} Bd6 {[%emt 0:08:23]} 16. Nxd7 {[%emt 0:00:21]} Qxd7 {[%emt 0:00:08]} 17. Bxd6 {[%emt 0:00:25]} Qxd6 {[%emt 0:00:09]} 18. Qxc8+ {[%emt 0:00:15]} Nxc8 {[%emt 0:00:32]} 19. Rxc8+ {[%emt 0:00:07]} Qf8 {[%emt 0:00:08]} 20. Rxf8+ {[%emt 0:00:05]} Kxf8 {[%emt 0:00:05]} 21. d5 {[%emt 0:00:36]} exd5 {[%emt 0:02:12]} 22. exd5 {[%emt 0:00:06]} Ra8 {[%emt 0:00:06]} 23. Rc1 {[%emt 0:00:35]} Rd8 {[%emt 0:01:15]} 24. Be4 {[%emt 0:00:09]} Rd7 {[%emt 0:01:07]} 25. Kf1 {[%emt 0:01:17]} Ke8 {[%emt 0:01:12]} 26. Ke2 {[%emt 0:01:17]} Ke7 {[%emt 0:00:42]} 27. Kd3 {[%emt 0:00:18]} Kf6 {[%emt 0:01:40]} 28. Kd4 {[%emt 0:00:25]} Ke7 {[%emt 0:01:30]} 29. Bf5 {[%emt 0:00:54]} Rd8 {[%emt 0:00:34]} 30. Rc7+ {[%emt 0:00:18]} Kf6 {[%emt 0:00:53]} 31. Rxb7 {[%emt 0:00:30]} Kxf5 {[%emt 0:00:48]} 32. Rxf7+ {[%emt 0:00:07]} Kg6 {[%emt 0:00:14]} 33. Rf3 {[%emt 0:00:34]} Rc8 {[%emt 0:01:02]} 34. d6 {[%emt 0:00:11]} Re8 {[%emt 0:02:10]} 35. Kd5 {[%emt 0:02:02]} Re2 {[%emt 0:00:35]} 36. d7 {[%emt 0:00:29]} Rd2+ {[%emt 0:00:17]} 37. Ke6 {[%emt 0:00:16]} a5 {[%emt 0:00:34]} 38. Ke7 {[%emt 0:00:07]} 1-0

[Event "44th Chess Olympiad Women 2022"]
[Site "Chennai"]
[Date "2022.08.02"]
[Round "5.53"]
[White "Meddeb, Chadha"]
[Black "Rondon Chacon, Yolys Desiree"]
[Result "1-0"]
[ECO "B01"]
[WhiteElo "1561"]
[BlackElo "1688"]
[Annotator "NA RC COMBH"]
[PlyCount "75"]
[EventDate "2022.07.29"]
[EventType "team-tourn"]
[EventCountry "IND"]
[SourceTitle "playchess.com"]
[Source "ChessBase"]
[SourceQuality "1"]
[WhiteTeam "Tunisia"]
[BlackTeam "Panama"]
[WhiteTeamCountry "TUN"]
[BlackTeamCountry "PAN"]
[TimeControl "40/5400+30:1800+30"]

1. e4 {[%emt 0:00:03]} d5 {[%emt 0:00:13]} 2. exd5 {[%emt 0:00:07]} Nf6 {[%emt 0:00:12]} 3. d4 {[%emt 0:02:24]} Nxd5 {[%emt 0:01:30]} 4. c4 {[%emt 0:00:44]} Nf6 {[%emt 0:00:24]} 5. Nf3 {[%emt 0:03:52]} g6 {[%emt 0:01:27]} 6. h3 {[%emt 0:05:01]} Bg7 {[%emt 0:01:18]} 7. Nc3 {[%emt 0:02:09]} c6 {[%emt 0:01:17]} 8. Be2 {[%emt 0:00:52]} O-O {[%emt 0:00:36]} 9. O-O {[%emt 0:05:45]} Nbd7 {[%emt 0:01:05]} 10. Bf4 {[%emt 0:05:08]} Nb6 {[%emt 0:03:36]} 11. Qd2 {[%emt 0:06:51]} Re8 {[%emt 0:04:15]} 12. Rad1 {[%emt 0:04:53]} Bf5 {[%emt 0:05:11]} 13. Rfe1 {[%emt 0:07:03]} Ne4 {[%emt 0:09:31]} 14. Nxe4 {[%emt 0:01:29]} Bxe4 {[%emt 0:00:09]} 15. Ng5 {[%emt 0:05:09]} Bf5 {[%emt 0:01:44]} 16. Nf3 {[%emt 0:10:48]} Rc8 {[%emt 0:09:21]} 17. Bh6 {[%emt 0:02:44]} Bh8 {[%emt 0:04:08]} 18. g4 {[%emt 0:01:21]} Be6 {[%emt 0:06:41]} 19. b3 {[%emt 0:02:18]} f6 {[%emt 0:04:33]} 20. Qe3 {[%emt 0:03:30]} Bf7 {[%emt 0:03:39]} 21. Bd3 {[%emt 0:03:05]} Rc7 {[%emt 0:02:20]} 22. Bc2 {[%emt 0:07:32]} Rd7 {[%emt 0:04:53]} 23. Rd3 {[%emt 0:06:47]} Bg7 {[%emt 0:06:21]} 24. Bxg7 {[%emt 0:01:33]} Kxg7 {[%emt 0:00:06]} 25. g5 {[%emt 0:00:04]} Qc7 {[%emt 0:03:54]} 26. Nh2 {[%emt 0:02:21]} Nc8 {[%emt 0:01:15]} 27. Ng4 {[%emt 0:01:48]} Nd6 {[%emt 0:07:58]} 28. gxf6+ {[%emt 0:00:21]} Kh8 {[%emt 0:09:31]} 29. Qg5 {[%emt 0:03:20]} Nf5 {[%emt 0:01:57]} 30. Ne5 {[%emt 0:00:42]} e6 {[%emt 0:04:29]} 31. Nxd7 {[%emt 0:01:46]} Qxd7 {[%emt 0:00:05]} 32. Rdd1 {[%emt 0:03:46]} Qc7 {[%emt 0:02:15]} 33. Kh1 {[%emt 0:00:59]} h6 {[%emt 0:00:35]} 34. Qd2 {[%emt 0:00:30]} Kh7 {[%emt 0:00:27]} 35. Bxf5 {[%emt 0:00:09]} gxf5 {[%emt 0:00:22]} 36. Rg1 {[%emt 0:00:14]} Bg6 {[%emt 0:00:30]} 37. Qe3 {[%emt 0:00:31]} e5 {[%emt 0:00:28]} 38. dxe5 {[%emt 0:00:29]} 1-0

[Event "44th Chess Olympiad Women 2022"]
[Site "Chennai"]
[Date "2022.08.02"]
[Round "5.53"]
[White "Mefteh, Meyssem"]
[Black "Munoz Henriquez, Alba Esther"]
[Result "1-0"]
[ECO "B12"]
[WhiteElo "1254"]
[BlackElo "1588"]
[Annotator "NA RC COMBH"]
[PlyCount "81"]
[EventDate "2022.07.29"]
[EventType "team-tourn"]
[EventCountry "IND"]
[SourceTitle "playchess.com"]
[Source "ChessBase"]
[SourceQuality "1"]
[WhiteTeam "Tunisia"]
[BlackTeam "Panama"]
[WhiteTeamCountry "TUN"]
[BlackTeamCountry "PAN"]
[TimeControl "40/5400+30:1800+30"]

1. e4 {[%emt 0:00:02]} c6 {[%emt 0:00:06]} 2. d4 {[%emt 0:00:07]} d5 {[%emt 0:00:08]} 3. e5 {[%emt 0:00:05]} Bf5 {[%emt 0:00:07]} 4. Nf3 {[%emt 0:00:08]} e6 {[%emt 0:00:13]} 5. Be2 {[%emt 0:00:05]} Nd7 {[%emt 0:00:21]} 6. O-O {[%emt 0:00:10]} c5 {[%emt 0:00:57]} 7. c4 {[%emt 0:00:21]} Nb6 {[%emt 0:05:40]} 8. cxd5 {[%emt 0:54:42]} exd5 {[%emt 0:05:28]} 9. Nc3 {[%emt 0:01:59]} c4 {[%emt 0:09:38]} 10. b3 {[%emt 0:03:50]} Bb4 {[%emt 0:01:21]} 11. Bb2 {[%emt 0:01:20]} Rc8 {[%emt 0:06:41]} 12. Nd2 {[%emt 0:03:39]} cxb3 {[%emt 0:18:07]} 13. Qxb3 {[%emt 0:00:17]} Bxc3 {[%emt 0:01:04]} 14. Bxc3 {[%emt 0:00:55]} Ne7 {[%emt 0:12:30]} 15. Rfc1 {[%emt 0:02:43]} Nc6 {[%emt 0:03:34]} 16. a4 {[%emt 0:03:09]} Rc7 {[%emt 0:02:29]} 17. a5 {[%emt 0:03:25]} Nc8 {[%emt 0:01:16]} 18. Bb5 {[%emt 0:03:04]} Bd7 {[%emt 0:07:04]} 19. Bxc6 {[%emt 0:02:21]} Bxc6 {[%emt 0:00:17]} 20. Bb4 {[%emt 0:00:32]} Ne7 {[%emt 0:03:43]} 21. Bc5 {[%emt 0:01:56]} Nc8 {[%emt 0:02:50]} 22. Qg3 {[%emt 0:02:46]} g6 {[%emt 0:02:10]} 23. Rcb1 {[%emt 0:01:45]} Rd7 {[%emt 0:05:26]} 24. e6 {[%emt 0:04:57]} fxe6 {[%emt 0:03:01]} 25. Qe5 {[%emt 0:00:15]} Kf7 {[%emt 0:00:09]} 26. Nf3 {[%emt 0:04:15]} h6 {[%emt 0:01:25]} 27. Re1 {[%emt 0:01:16]} Qf6 {[%emt 0:00:45]} 28. Re3 {[%emt 0:01:18]} Re8 {[%emt 0:02:03]} 29. Qg3 {[%emt 0:00:50]} Kg7 {[%emt 0:03:11]} 30. Ne5 {[%emt 0:00:28]} Rc7 {[%emt 0:00:31]} 31. Nxg6 {[%emt 0:00:49]} Qxg6 {[%emt 0:00:23]} 32. Qxc7+ {[%emt 0:00:31]} Kh8 {[%emt 0:01:06]} 33. Qe5+ {[%emt 0:00:30]} Kh7 {[%emt 0:00:16]} 34. Rg3 {[%emt 0:00:06]} Qf7 {[%emt 0:00:23]} 35. Raa3 {[%emt 0:00:54]} Rg8 {[%emt 0:02:22]} 36. Rxg8 {[%emt 0:00:18]} Qxg8 {[%emt 0:00:30]} 37. Qg3 {[%emt 0:00:07]} Qxg3 {[%emt 0:00:40]} 38. Rxg3 {[%emt 0:00:06]} b6 {[%emt 0:00:38]} 39. Bf8 {[%emt 0:00:36]} Be8 {[%emt 0:00:54]} 40. Rg7+ {[%emt 0:01:21]} Kh8 {[%emt 0:00:11]} 41. Rc7 {[%emt 0:30:13]} 1-0

[Event "44th Chess Olympiad Women 2022"]
[Site "Chennai"]
[Date "2022.08.02"]
[Round "5.54"]
[White "Makwena, Christine"]
[Black "Nema, Rabab Ahmed"]
[Result "1/2-1/2"]
[ECO "A45"]
[WhiteElo "1609"]
[BlackElo "1172"]
[Annotator "NA RC COMBH"]
[PlyCount "69"]
[EventDate "2022.07.29"]
[EventType "team-tourn"]
[EventCountry "IND"]
[SourceTitle "playchess.com"]
[Source "ChessBase"]
[SourceQuality "1"]
[WhiteTeam "Zimbabwe"]
[BlackTeam "Kuwait"]
[WhiteTeamCountry "ZIM"]
[BlackTeamCountry "KUW"]
[TimeControl "40/5400+30:1800+30"]

1. d4 {[%emt 0:00:02]} Nf6 {[%emt 0:00:11]} 2. Bg5 {[%emt 0:00:04]} g6 {[%emt 0:00:20]} 3. Bxf6 {[%emt 0:00:24]} exf6 {[%emt 0:00:12]} 4. e3 {[%emt 0:00:04]} Bg7 {[%emt 0:00:25]} 5. c4 {[%emt 0:00:26]} d6 {[%emt 0:01:09]} 6. Nc3 {[%emt 0:00:26]} O-O {[%emt 0:00:44]} 7. Bd3 {[%emt 0:00:18]} f5 {[%emt 0:01:28]} 8. Nf3 {[%emt 0:00:43]} Nd7 {[%emt 0:00:41]} 9. O-O {[%emt 0:00:30]} Nf6 {[%emt 0:00:37]} 10. Qc2 {[%emt 0:01:47]} Re8 {[%emt 0:00:51]} 11. Rfe1 {[%emt 0:00:37]} Bd7 {[%emt 0:09:26]} 12. Rad1 {[%emt 0:05:13]} c5 {[%emt 0:03:46]} 13. h3 {[%emt 0:08:44]} Qc7 {[%emt 0:04:36]} 14. d5 {[%emt 0:01:14]} Re7 {[%emt 0:05:30]} 15. e4 {[%emt 0:03:50]} fxe4 {[%emt 0:03:30]} 16. Nxe4 {[%emt 0:00:11]} Nxe4 {[%emt 0:00:18]} 17. Rxe4 {[%emt 0:01:13]} Rxe4 {[%emt 0:03:37]} 18. Bxe4 {[%emt 0:00:07]} Re8 {[%emt 0:03:15]} 19. Bd3 {[%emt 0:04:49]} a6 {[%emt 0:06:28]} 20. Qd2 {[%emt 0:03:19]} b5 {[%emt 0:03:53]} 21. b3 {[%emt 0:00:40]} b4 {[%emt 0:04:00]} 22. Re1 {[%emt 0:02:05]} Rxe1+ {[%emt 0:03:31]} 23. Qxe1 {[%emt 0:00:04]} Qd8 {[%emt 0:01:51]} 24. Qe3 {[%emt 0:03:23]} Qf6 {[%emt 0:04:35]} 25. Qe2 {[%emt 0:01:37]} a5 {[%emt 0:07:01]} 26. Kh2 {[%emt 0:05:01]} a4 {[%emt 0:02:16]} 27. Nd2 {[%emt 0:05:32]} Qe5+ {[%emt 0:04:28]} 28. Qxe5 {[%emt 0:01:14]} Bxe5+ {[%emt 0:00:03]} 29. g3 {[%emt 0:02:15]} f5 {[%emt 0:03:04]} 30. f4 {[%emt 0:02:46]} Bf6 {[%emt 0:02:19]} 31. Kg2 {[%emt 0:01:16]} a3 {[%emt 0:00:37]} 32. Bc2 {[%emt 0:01:39]} Kf7 {[%emt 0:02:28]} 33. Nf3 {[%emt 0:00:49]} h6 {[%emt 0:01:27]} 34. h4 {[%emt 0:03:28]} Kg7 {[%emt 0:04:46]} 35. Kh3 {[%emt 0:02:14]} 1/2-1/2

[Event "44th Chess Olympiad Women 2022"]
[Site "Chennai"]
[Date "2022.08.02"]
[Round "5.54"]
[White "Zengeni, Tatenda Melisa"]
[Black "Hadeel Mohammad Kalandar"]
[Result "1-0"]
[ECO "D00"]
[WhiteElo "1553"]
[BlackElo "1083"]
[Annotator "NA RC COMBH"]
[PlyCount "59"]
[EventDate "2022.07.29"]
[EventType "team-tourn"]
[EventCountry "IND"]
[SourceTitle "playchess.com"]
[Source "ChessBase"]
[SourceQuality "1"]
[WhiteTeam "Zimbabwe"]
[BlackTeam "Kuwait"]
[WhiteTeamCountry "ZIM"]
[BlackTeamCountry "KUW"]
[TimeControl "40/5400+30:1800+30"]

1. d4 {[%emt 0:00:06]} d5 {[%emt 0:00:04]} 2. f4 {[%emt 0:00:32]} Nf6 {[%emt 0:01:45]} 3. e3 {[%emt 0:00:23]} e6 {[%emt 0:01:34]} 4. Bd3 {[%emt 0:00:10]} Be7 {[%emt 0:01:50]} 5. Nd2 {[%emt 0:00:22]} O-O {[%emt 0:02:21]} 6. Ngf3 {[%emt 0:00:05]} h6 {[%emt 0:02:50]} 7. O-O {[%emt 0:00:07]} Nbd7 {[%emt 0:06:35]} 8. Ne5 {[%emt 0:00:20]} Nxe5 {[%emt 0:09:00]} 9. fxe5 {[%emt 0:00:10]} Nd7 {[%emt 0:02:08]} 10. Qg4 {[%emt 0:04:15]} c5 {[%emt 0:06:20]} 11. c3 {[%emt 0:01:23]} Bg5 {[%emt 0:06:04]} 12. Nf3 {[%emt 0:09:38]} f6 {[%emt 0:09:46]} 13. Qxe6+ {[%emt 0:02:47]} Rf7 {[%emt 0:01:31]} 14. Qxd5 {[%emt 0:00:25]} Kh8 {[%emt 0:17:54]} 15. Qxf7 {[%emt 0:00:57]} Qg8 {[%emt 0:02:32]} 16. Nxg5 {[%emt 0:01:28]} Nf8 {[%emt 0:01:32]} 17. Qxg8+ {[%emt 0:00:32]} Kxg8 {[%emt 0:00:22]} 18. Bc4+ {[%emt 0:00:11]} Kh8 {[%emt 0:01:33]} 19. Nf7+ {[%emt 0:00:08]} Kh7 20. exf6 {[%emt 0:00:09]} g6 {[%emt 0:02:38]} 21. e4 {[%emt 0:00:51]} cxd4 {[%emt 0:04:37]} 22. cxd4 {[%emt 0:02:10]} a6 {[%emt 0:00:05]} 23. Bxh6 {[%emt 0:00:17]} Nd7 {[%emt 0:00:52]} 24. e5 {[%emt 0:00:22]} b5 {[%emt 0:00:20]} 25. Bd5 {[%emt 0:00:23]} Ra7 {[%emt 0:00:42]} 26. Rf4 {[%emt 0:00:45]} Nb6 {[%emt 0:02:04]} 27. Bb3 {[%emt 0:05:34]} a5 {[%emt 0:01:04]} 28. Rh4 {[%emt 0:00:08]} Kg8 {[%emt 0:06:01]} 29. Ng5+ {[%emt 0:01:02]} Nc4 {[%emt 0:01:23]} 30. Bg7 {[%emt 0:01:47]} 1-0

[Event "44th Chess Olympiad Women 2022"]
[Site "Chennai"]
[Date "2022.08.02"]
[Round "5.54"]
[White "Alazmi, Amani"]
[Black "Shaba, Linda Dalitso"]
[Result "0-1"]
[ECO "C00"]
[WhiteElo "1506"]
[BlackElo "1658"]
[Annotator "NA RC COMBH"]
[PlyCount "174"]
[EventDate "2022.07.29"]
[EventType "team-tourn"]
[EventCountry "IND"]
[SourceTitle "playchess.com"]
[Source "ChessBase"]
[SourceQuality "1"]
[WhiteTeam "Kuwait"]
[BlackTeam "Zimbabwe"]
[WhiteTeamCountry "KUW"]
[BlackTeamCountry "ZIM"]
[TimeControl "40/5400+30:1800+30"]

1. e4 {[%emt 0:00:01]} e6 {[%emt 0:00:05]} 2. d3 {[%emt 0:00:03]} d5 {[%emt 0:00:07]} 3. Nd2 {[%emt 0:00:04]} Nf6 {[%emt 0:00:09]} 4. Ngf3 {[%emt 0:00:05]} b6 {[%emt 0:00:39]} 5. g3 {[%emt 0:00:19]} Ba6 {[%emt 0:00:31]} 6. e5 {[%emt 0:01:21]} Nfd7 {[%emt 0:00:08]} 7. Bg2 {[%emt 0:00:06]} c5 {[%emt 0:00:19]} 8. O-O {[%emt 0:00:22]} Nc6 {[%emt 0:00:10]} 9. Re1 {[%emt 0:00:15]} Qc7 {[%emt 0:00:16]} 10. Qe2 {[%emt 0:00:25]} Nb4 {[%emt 0:01:01]} 11. Qd1 {[%emt 0:02:18]} Rc8 {[%emt 0:00:43]} 12. a3 {[%emt 0:00:11]} Nc6 {[%emt 0:00:14]} 13. Qe2 {[%emt 0:00:11]} Nd4 {[%emt 0:09:03]} 14. Nxd4 {[%emt 0:08:00]} cxd4 {[%emt 0:00:13]} 15. Bxd5 {[%emt 0:00:04]} Qxc2 {[%emt 0:03:33]} 16. Bc4 {[%emt 0:05:10]} b5 {[%emt 0:06:07]} 17. Bb3 {[%emt 0:01:18]} Qc6 {[%emt 0:04:08]} 18. Nf3 {[%emt 0:06:47]} Bb7 {[%emt 0:00:28]} 19. Bd1 {[%emt 0:00:14]} Be7 {[%emt 0:06:39]} 20. Bf4 {[%emt 0:03:24]} O-O {[%emt 0:01:38]} 21. h4 {[%emt 0:01:37]} Nc5 {[%emt 0:05:10]} 22. Kh2 {[%emt 0:03:49]} Qxf3 {[%emt 0:01:44]} 23. Qxf3 {[%emt 0:00:47]} Bxf3 {[%emt 0:00:05]} 24. Bxf3 {[%emt 0:01:22]} Nxd3 {[%emt 0:00:06]} 25. Re2 {[%emt 0:02:08]} Nxf4 {[%emt 0:00:41]} 26. gxf4 {[%emt 0:00:05]} Bxh4 {[%emt 0:00:54]} 27. Rd1 {[%emt 0:02:51]} Rc4 {[%emt 0:02:58]} 28. f5 {[%emt 0:05:06]} exf5 {[%emt 0:04:46]} 29. Bd5 {[%emt 0:00:35]} Rc5 {[%emt 0:10:32]} 30. Rxd4 {[%emt 0:00:14]} Bg5 {[%emt 0:20:02]} 31. e6 {[%emt 0:07:50]} fxe6 {[%emt 0:02:08]} 32. Bxe6+ {[%emt 0:01:25]} Kh8 {[%emt 0:00:08]} 33. b4 {[%emt 0:02:07]} Rc3 {[%emt 0:02:10]} 34. Bxf5 {[%emt 0:09:08]} Rxa3 {[%emt 0:01:05]} 35. Rde4 {[%emt 0:06:23]} Rf3 {[%emt 0:03:58]} 36. Bd7 {[%emt 0:03:34]} Rxf2+ {[%emt 0:03:49]} 37. Rxf2 {[%emt 0:00:06]} Rxf2+ {[%emt 0:00:06]} 38. Kg3 {[%emt 0:00:11]} Rf8 {[%emt 0:00:13]} 39. Bxb5 {[%emt 0:00:23]} Bd8 {[%emt 0:01:25]} 40. Bc4 {[%emt 0:05:11]} h6 {[%emt 0:02:39]} 41. Kg4 {[%emt 0:31:26]} Bc7 {[%emt 0:31:04]} 42. b5 {[%emt 0:00:51]} Kh7 {[%emt 0:02:54]} 43. Bd3 {[%emt 0:01:02]} Kh8 {[%emt 0:00:34]} 44. Re7 {[%emt 0:02:36]} Bb6 {[%emt 0:02:42]} 45. Kh5 {[%emt 0:00:49]} Rd8 {[%emt 0:00:31]} 46. Be4 {[%emt 0:02:13]} Bf2 {[%emt 0:01:20]} 47. Rf7 {[%emt 0:00:50]} Be3 {[%emt 0:00:46]} 48. Rf3 {[%emt 0:03:46]} Bd4 {[%emt 0:01:28]} 49. Rf7 {[%emt 0:00:55]} Kg8 {[%emt 0:00:30]} 50. Rf5 {[%emt 0:01:34]} Re8 {[%emt 0:01:13]} 51. Bd5+ {[%emt 0:00:51]} Kh7 {[%emt 0:00:21]} 52. Bf7 {[%emt 0:01:19]} Re3 {[%emt 0:00:00]} 53. Bg6+ {[%emt 0:00:00]} Kg8 {[%emt 0:00:00]} 54. Bf7+ {[%emt 0:00:00]} Kf8 {[%emt 0:00:00]} 55. Kg6 {[%emt 0:00:00]} Rg3+ {[%emt 0:00:00]} 56. Kh7 {[%emt 0:00:00]} Ke7 {[%emt 0:00:00]} 57. Bg6 {[%emt 0:00:00]} Kd6 {[%emt 0:00:00]} 58. Bf7 {[%emt 0:00:00]} Kc7 {[%emt 0:00:00]} 59. Be8 {[%emt 0:00:00]} Kb6 {[%emt 0:00:00]} 60. Rd5 {[%emt 0:00:00]} Rg4 {[%emt 0:00:00]} 61. Rd6+ {[%emt 0:00:00]} Ka5 {[%emt 0:00:00]} 62. Ra6+ {[%emt 0:00:00]} Kb4 {[%emt 0:00:00]} 63. Rg6 {[%emt 0:00:00]} h5 {[%emt 0:00:00]} 64. Re6 {[%emt 0:00:00]} h4 {[%emt 0:00:00]} 65. Bd7 {[%emt 0:00:00]} h3 {[%emt 0:00:00]} 66. b6 {[%emt 0:00:00]} Rh4+ {[%emt 0:00:00]} 67. Kg6 {[%emt 0:00:00]} axb6 {[%emt 0:00:00]} 68. Kg5 {[%emt 0:00:00]} Rh8 {[%emt 0:00:00]} 69. Re4 {[%emt 0:00:54]} Kc5 {[%emt 0:00:00]} 70. Re1 {[%emt 0:02:46]} h2 {[%emt 0:00:00]} 71. Rh1 {[%emt 0:00:04]} Bg1 {[%emt 0:00:00]} 72. Kg6 {[%emt 0:00:14]} Ra8 {[%emt 0:00:00]} 73. Bf5 {[%emt 0:00:31]} Ra7 {[%emt 0:00:00]} 74. Kh5 {[%emt 0:00:55]} b5 {[%emt 0:00:00]} 75. Kg4 {[%emt 0:00:15]} Kd4 {[%emt 0:00:00]} 76. Be6 {[%emt 0:00:55]} b4 {[%emt 0:00:00]} 77. Kg5 {[%emt 0:00:11]} Kc3 {[%emt 0:00:02]} 78. Bf5 {[%emt 0:00:23]} Ra5 {[%emt 0:00:06]} 79. Kg6 {[%emt 0:00:05]} Rxf5 {[%emt 0:00:06]} 80. Kxf5 {[%emt 0:00:05]} b3 {[%emt 0:00:08]} 81. Kg4 {[%emt 0:00:16]} b2 {[%emt 0:00:06]} 82. Kf3 {[%emt 0:00:16]} b1=Q {[%emt 0:00:09]} 83. Kg2 {[%emt 0:00:23]} Qe4+ {[%emt 0:00:06]} 84. Kh3 {[%emt 0:00:06]} Qf3+ {[%emt 0:00:48]} 85. Kh4 {[%emt 0:01:36]} Qxh1 {[%emt 0:00:46]} 86. Kh5 {[%emt 0:00:12]} Qg2 {[%emt 0:00:05]} 87. Kh4 {[%emt 0:00:16]} h1=R# {[%emt 0:00:15]} 0-1

[Event "44th Chess Olympiad Women 2022"]
[Site "Chennai"]
[Date "2022.08.02"]
[Round "5.54"]
[White "Alazmi, Aeshah"]
[Black "Mudodo, Refiloe Hazel"]
[Result "0-1"]
[ECO "C00"]
[WhiteElo "1256"]
[BlackElo "1604"]
[Annotator "NA RC COMBH"]
[PlyCount "94"]
[EventDate "2022.07.29"]
[EventType "team-tourn"]
[EventCountry "IND"]
[SourceTitle "playchess.com"]
[Source "ChessBase"]
[SourceQuality "1"]
[WhiteTeam "Kuwait"]
[BlackTeam "Zimbabwe"]
[WhiteTeamCountry "KUW"]
[BlackTeamCountry "ZIM"]
[TimeControl "40/5400+30:1800+30"]

1. e4 {[%emt 0:00:02]} e6 {[%emt 0:00:21]} 2. d3 {[%emt 0:00:06]} d5 {[%emt 0:00:40]} 3. Nd2 {[%emt 0:00:10]} Nf6 {[%emt 0:00:37]} 4. Ngf3 {[%emt 0:00:14]} b6 {[%emt 0:01:17]} 5. g3 {[%emt 0:00:12]} dxe4 {[%emt 0:01:42]} 6. dxe4 {[%emt 0:04:10]} Bb7 {[%emt 0:01:39]} 7. Qe2 {[%emt 0:00:20]} Bc5 {[%emt 0:01:59]} 8. Bg2 {[%emt 0:04:27]} O-O {[%emt 0:01:28]} 9. O-O {[%emt 0:00:06]} Nc6 {[%emt 0:01:28]} 10. c3 {[%emt 0:00:11]} a5 {[%emt 0:01:42]} 11. a3 {[%emt 0:03:14]} e5 {[%emt 0:04:10]} 12. Nc4 {[%emt 0:00:38]} Qe7 {[%emt 0:01:26]} 13. Bg5 {[%emt 0:03:57]} h6 {[%emt 0:04:09]} 14. Bh4 {[%emt 0:00:43]} Qe6 {[%emt 0:02:37]} 15. Rfe1 {[%emt 0:01:16]} Ba6 {[%emt 0:00:21]} 16. b3 {[%emt 0:00:27]} a4 {[%emt 0:00:31]} 17. Nfd2 {[%emt 0:04:52]} Bxc4 {[%emt 0:00:35]} 18. bxc4 {[%emt 0:01:11]} g5 {[%emt 0:00:14]} 19. Nf3 {[%emt 0:00:44]} gxh4 {[%emt 0:00:49]} 20. Nxh4 {[%emt 0:00:12]} Na5 {[%emt 0:02:02]} 21. Nf5 {[%emt 0:00:33]} Kh7 {[%emt 0:00:36]} 22. Bf1 {[%emt 0:05:40]} Rad8 {[%emt 0:04:08]} 23. Qf3 {[%emt 0:03:00]} Rd2 {[%emt 0:02:22]} 24. Re2 {[%emt 0:00:44]} Rfd8 {[%emt 0:01:04]} 25. Qg2 {[%emt 0:03:09]} Rxe2 {[%emt 0:00:38]} 26. Bxe2 {[%emt 0:00:31]} Rd2 {[%emt 0:01:09]} 27. Qh3 {[%emt 0:00:47]} Bf8 {[%emt 0:05:28]} 28. Re1 {[%emt 0:00:26]} Nxe4 {[%emt 0:02:07]} 29. g4 {[%emt 0:01:21]} Nd6 {[%emt 0:03:21]} 30. Bd3 {[%emt 0:02:15]} Kg8 {[%emt 0:00:15]} 31. g5 {[%emt 0:03:03]} Nxf5 {[%emt 0:00:19]} 32. Bxf5 {[%emt 0:00:32]} Qd6 {[%emt 0:00:14]} 33. gxh6 {[%emt 0:02:34]} Qxh6 {[%emt 0:00:18]} 34. Qxh6 {[%emt 0:01:21]} Bxh6 {[%emt 0:00:12]} 35. Rxe5 {[%emt 0:01:12]} Nxc4 {[%emt 0:01:48]} 36. Bg4 {[%emt 0:02:20]} Nxe5 {[%emt 0:00:08]} 37. h3 {[%emt 0:00:44]} Nxg4 {[%emt 0:00:06]} 38. hxg4 {[%emt 0:00:08]} Ra2 {[%emt 0:00:06]} 39. Kg2 {[%emt 0:00:06]} Rxa3 {[%emt 0:00:05]} 40. Kh3 {[%emt 0:00:17]} Rxc3+ {[%emt 0:00:45]} 41. Kh4 {[%emt 0:30:04]} a3 {[%emt 0:30:07]} 42. f4 {[%emt 0:00:05]} a2 {[%emt 0:00:08]} 43. g5 {[%emt 0:00:03]} a1=Q {[%emt 0:00:27]} 44. gxh6 {[%emt 0:00:06]} Qg1 {[%emt 0:00:06]} 45. f5 {[%emt 0:00:13]} Rc2 {[%emt 0:00:05]} 46. h7+ {[%emt 0:00:10]} Kxh7 {[%emt 0:00:07]} 47. f6 {[%emt 0:00:15]} Rh2# {[%emt 0:00:05]} 0-1